bitfinex/quotes_SOLUSD_20260201
["timestamp","ask_amount","ask_price","bid_price","bid_amount"]
[1769946644150,9.73688,105.13,105.1,0.89608353]
[1769946645748,9.51203272,105.13,105.1,0.89608353]
[1769946647550,9.74411134,105.13,105.1,0.89608353]
[1769946648247,0.23443391,105.12,105.09,0.89608353]
[1769946651448,9.74791586,105.12,105.09,0.89608353]
[1769946651650,0.24358761,105.11,105.08,0.89608353]
[1769946653452,9.75791552,105.11,105.08,0.89608353]
[1769946655657,0.25232795,105.12,105.09,0.89608353]
[1769946657252,9.76571373,105.12,105.09,0.89608353]
[1769946660948,28.05446893,105.14,105.1,0.89608353]
[1769946660949,0.26270044,105.13,105.1,0.89608353]
[1769946662043,9.77527983,105.13,105.1,0.89608353]
[1769946665164,9.78105801,105.15,105.11,0.89608353]
[1769946666371,0.27249076,105.14,105.11,0.89608353]
[1769946668771,33.56230319,105.14,105.11,0.89608353]
[1769946669864,0.28173159,105.13,105.1,0.93194936]
[1769946670169,0.28173159,105.13,105.09,0.93194936]
[1769946670555,0.28173159,105.13,105.08,0.93194936]
[1769946671271,9.79645416,105.12,105.08,0.93194936]
[1769946675470,9.80282985,105.13,105.09,0.93194936]
[1769946675666,9.51237607,105.13,105.09,0.93194936]
[1769946675858,9.80366394,105.14,105.09,0.93194936]
[1769946676068,9.80366394,105.14,105.1,0.93194936]
[1769946676673,9.51069022,105.15,105.1,0.93194936]
[1769946676886,9.80449423,105.15,105.1,0.93194936]
[1769946677459,0.29380401,105.14,105.1,0.93194936]
[1769946678281,0.29380401,105.14,105.11,0.93194936]
[1769946679077,9.80501775,105.14,105.11,0.93194936]
[1769946679564,9.51121374,105.14,105.11,0.93194936]
[1769946681291,0.30027666,105.13,105.09,0.93194936]
[1769946683484,9.81321338,105.13,105.09,0.93194936]
[1769946684085,0.30493859,105.12,105.09,0.93194936]
[1769946685984,9.51384264,105.11,105.09,0.93194936]
[1769946687187,0.30493859,105.12,105.09,0.93194936]
[1769946687364,4.58471257,105.14,105.1,0.93194936]
[1769946687568,4.27527085,105.14,105.1,0.93194936]
[1769946687989,13.78656872,105.14,105.11,0.93194936]
[1769946692793,0.31799303,105.13,105.1,0.93194936]
[1769946693487,9.83002973,105.13,105.1,0.93194936]
[1769946696198,0.32205149,105.12,105.1,0.93194936]
[1769946698702,9.83928522,105.13,105.1,0.93194936]
[1769946701307,17.20502921,105.14,105.11,1.03717249]
[1769946701494,13.7861918,105.15,105.11,1.03717249]
[1769946701683,14.1171835,105.15,105.11,1.03717249]
[1769946702582,14.1171835,105.15,105.12,1.03717249]
[1769946704003,0.33460737,105.14,105.12,1.03717249]
[1769946704798,9.84581942,105.14,105.12,1.03717249]
[1769946706506,22.44931192,105.14,105.09,1.00746663]
[1769946708603,22.44931192,105.14,105.1,1.00746663]
[1769946709202,12.6,105.14,105.1,1.00746663]
[1769946709908,9.5102815,105.15,105.1,1.00746663]
[1769946710405,9.85175491,105.15,105.12,1.00746663]
[1769946713107,9.85405116,105.16,105.12,1.00746663]
[1769946714010,0.34579338,105.15,105.12,1.00746663]
[1769946715508,9.85659292,105.15,105.12,1.00746663]
[1769946720808,0.35288923,105.14,105.11,1.00746663]
[1769946721015,0.35288923,105.14,105.1,1.00746663]
[1769946721398,0.35288923,105.14,105.08,1.00746663]
[1769946722513,22.46364874,105.16,105.08,1.00746663]
[1769946723011,22.46364874,105.16,105.07,81.18277177]
[1769946723012,0.35481344,105.15,105.1,1.00746663]
[1769946724205,9.51112801,105.14,105.1,10.52181564]
[1769946724413,9.866887,105.14,105.11,1.00746663]
[1769946728321,0.35575899,105.14,105.11,10.52130876]
[1769946728519,0.35575899,105.14,105.12,0.97326377]
[1769946729607,9.87095333,105.17,105.12,0.97326377]
[1769946730012,0.36208068,105.16,105.12,0.97326377]
[1769946730519,0.36208068,105.16,105.12,9.51217365]
[1769946730700,9.50887265,105.17,105.13,0.97326377]
[1769946730896,9.87181541,105.17,105.13,0.97326377]
[1769946733529,0.36463734,105.16,105.13,0.97326377]
[1769946734305,9.87476238,105.16,105.13,0.97326377]
[1769946740227,9.51012504,105.16,105.13,0.97326377]
[1769946740429,9.88039436,105.16,105.13,0.97326377]
[1769946740619,9.51012504,105.16,105.13,0.97326377]
[1769946740821,9.88116239,105.16,105.13,0.97326377]
[1769946743912,0.37328892,105.15,105.13,0.97326377]
[1769946745531,9.88487223,105.16,105.13,0.97326377]
[1769946751137,0.37824881,105.14,105.11,0.97326377]
[1769946751515,0.37824881,105.14,105.1,0.97326377]
[1769946752931,0.3795938,105.12,105.09,0.97326377]
[1769946753329,0.3795938,105.12,105.07,9.51698463]
[1769946753532,0.3795938,105.12,105.08,0.97326377]
[1769946754447,9.51384264,105.11,105.08,0.97326377]
[1769946755325,9.51331011,105.12,105.09,0.97326377]
[1769946755525,0.38090807,105.12,105.09,0.97326377]
[1769946756451,9.89539654,105.11,105.09,0.97326377]
[1769946756638,9.89539654,105.11,105.07,0.97326377]
[1769946758358,0.38344724,105.1,105.07,1.04810205]
[1769946758538,0.38406391,105.09,105.07,1.04810205]
[1769946758738,9.89894822,105.1,105.07,1.04810205]
[1769946759541,9.51488431,105.1,105.07,1.04810205]
[1769946761045,0.38527608,105.1,105.07,1.04810205]
[1769946761764,0.38587174,105.11,105.07,1.04810205]
[1769946762658,0.38646056,105.1,105.06,1e-08]
[1769946763254,9.9021138,105.09,105.06,1e-08]
[1769946763455,0.38646056,105.08,105.06,1e-08]
[1769946765552,9.51746454,105.07,105.06,1e-08]
[1769946767845,17.265125,105.09,105.06,1e-08]
[1769946768041,0.38985415,105.08,105.06,1e-08]
[1769946768243,26.39132066,105.09,105.04,1.04033657]
[1769946768244,4.665125,105.07,105.04,1.04033657]
[1769946768742,4.27527085,105.07,105.05,1.04033657]
[1769946768941,33.30518293,105.09,105.05,1.04033657]
[1769946768942,9.51604981,105.09,105.05,1.04033657]
[1769946769453,9.90555441,105.1,105.05,1.04033657]
[1769946769850,9.51515718,105.1,105.05,1.04033657]
[1769946770056,9.90609125,105.1,105.07,1.04033657]
[1769946770637,9.51293759,105.12,105.07,1.04033657]
[1769946770947,9.90440234,105.12,105.07,1.04033657]
[1769946771453,28.0570898,105.13,105.07,1.04033657]
[1769946771454,9.90397736,105.13,105.07,1.04033657]
[1769946772553,9.90397736,105.13,105.08,9.51655881]
[1769946772752,9.90397736,105.13,105.09,1.04033657]
[1769946774562,0.39352719,105.12,105.09,1.04033657]
[1769946774762,0.39352719,105.12,105.08,1.04033657]
[1769946775256,0.39352719,105.12,105.08,10.55667213]
[1769946775462,0.39352719,105.12,105.08,9.51633556]
[1769946775655,9.51251261,105.13,105.1,1.04033657]
[1769946775847,14.18074062,105.14,105.1,1.04033657]
[1769946776463,4.27527085,105.14,105.12,1.04033657]
[1769946776656,4.27527085,105.14,105.11,9.51384264]
[1769946778564,4.27527085,105.14,105.11,10.55417921]
[1769946780180,9.90494557,105.15,105.12,1.04033657]
[1769946780646,9.51091749,105.15,105.12,1.04033657]
[1769946780842,10.48326417,105.16,105.13,1.04033657]
[1769946781656,0.9738249,105.15,105.12,1.04033657]
[1769946783178,10.48326417,105.16,105.12,1.04033657]
[1769946783965,0.9738249,105.15,105.12,1.04033657]
[1769946784871,10.48326417,105.16,105.13,1.04033657]
[1769946790475,1.04589632,105.15,105.12,1.0753692]
[1769946793171,4.27527085,105.17,105.13,1.0753692]
[1769946793389,10.55402929,105.18,105.15,1.0753692]
[1769946798273,1.04589632,105.17,105.14,1.0753692]
[1769946798464,1.04589632,105.17,105.13,10.5869425]
[1769946798865,1.04589632,105.17,105.14,1.0753692]
[1769946800191,10.55440292,105.17,105.14,1.0753692]
[1769946801367,1.04589632,105.16,105.1,1.0753692]
[1769946801673,1.04589632,105.16,105.12,1.0753692]
[1769946803587,9.51022349,105.15,105.12,1.0753692]
[1769946803791,10.55611981,105.15,105.12,1.0753692]
[1769946807491,1.04589632,105.15,105.12,10.58825968]
[1769946807669,23.15567685,105.16,105.13,1.0753692]
[1769946809876,1.04589632,105.15,105.12,1.0753692]
[1769946811394,10.5561802,105.15,105.12,1.0753692]
[1769946821398,10.60077544,105.15,105.12,1.0753692]
[1769946825013,1.03502873,105.14,105.11,1.07799047]
[1769946825383,1.03502873,105.14,105.1,1.07799047]
[1769946826796,5.31029958,105.15,105.13,1.07799047]
[1769946827287,5.31029958,105.15,105.12,1.07799047]
[1769946827491,14.82055573,105.15,105.12,1.07799047]
[1769946828102,1.03502873,105.15,105.12,1.07799047]
[1769946832201,10.545318,105.15,105.12,1.07799047]
[1769946833703,12.6,105.16,105.13,1.07799047]
[1769946833704,23.14472558,105.16,105.13,1.07799047]
[1769946834005,10.54472558,105.16,105.13,1.07799047]
[1769946835104,1.03502873,105.15,105.13,1.07799047]
[1769946837288,1.03502873,105.14,105.12,1.07799047]
[1769946837600,9.51040209,105.15,105.12,1.07799047]
[1769946837601,10.54543082,105.15,105.12,1.07799047]
[1769946838001,1.03502873,105.14,105.1,1.07799047]
[1769946839514,1.03502873,105.14,105.12,1.07799047]
[1769946839810,1.03502873,105.14,105.1,1.07799047]
[1769946839811,1.03502873,105.13,105.1,1.07799047]
[1769946840693,1.03502873,105.13,105.1,10.59267545]
[1769946841407,5.31029958,105.11,105.07,10.59507056]
[1769946841612,1.03502873,105.1,105.07,10.59507056]
[1769946841787,1.03502873,105.11,105.08,1.07799047]
[1769946842791,10.54888505,105.11,105.08,1.07799047]
[1769946844112,10.5489954,105.11,105.08,1.07799047]
[1769946845622,1.03502873,105.12,105.09,1.07799047]
[1769946849012,10.54820921,105.12,105.09,1.07799047]
[1769946850301,1.02689485,105.11,105.08,1.03339988]
[1769946852719,10.54088378,105.11,105.08,1.03339988]
[1769946853904,1.02689485,105.11,105.08,10.54977843]
[1769946855302,23.14028052,105.12,105.09,1.03339988]
[1769946861835,13.62689485,105.12,105.09,10.54903049]
[1769946863125,23.1398516,105.12,105.09,10.54903049]
[1769946864726,23.1398516,105.12,105.09,1.03339988]
[1769946868443,1.02689485,105.11,105.09,1.03339988]
[1769946868622,23.1398516,105.12,105.09,1.03339988]
[1769946870434,1.02689485,105.11,105.08,1.03339988]
[1769946871437,10.54086277,105.11,105.08,1.03339988]
[1769946872343,10.54086277,105.11,105.08,10.54939747]
[1769946872344,1.02689485,105.11,105.08,10.54939747]
[1769946872944,12.6,105.12,105.09,1.03339988]
[1769946873625,13.62689485,105.12,105.09,1.03339988]
[1769946874146,13.62689485,105.12,105.09,10.54885412]
[1769946878024,23.13985815,105.12,105.09,10.54885412]
[1769946878234,23.13985815,105.12,105.09,1.03339988]
[1769946879341,1.10282716,105.11,105.09,1.03339988]
[1769946879544,1.10282716,105.11,105.08,10.6018992]
[1769946880142,1.10282716,105.11,105.09,1.0858213]
[1769946880843,13.70282716,105.12,105.09,10.60139773]
[1769946881528,1.10282716,105.11,105.09,9.51557643]
[1769946881728,13.70282716,105.12,105.09,10.60139773]
[1769946882846,1.10282716,105.12,105.09,10.60139773]
[1769946883347,9.523,105.2,105.09,10.60139773]
[1769946883348,1.10282716,105.16,105.1,1.0858213]
[1769946883547,1.10282716,105.16,105.06,52.95050889]
[1769946883548,23.77025565,105.18,105.11,1.0858213]
[1769946883745,33.00811977,105.18,105.11,1.0858213]
[1769946884051,23.77025565,105.18,105.11,1.0858213]
[1769946884252,9.50884244,105.17,105.12,1.00049892]
[1769946884551,9.50884244,105.17,105.13,1.00049892]
[1769946885448,9.90143664,105.17,105.13,1.00049892]
[1769946886248,9.90143664,105.17,105.14,1.00049892]
[1769946887554,0.39337967,105.16,105.14,1.00049892]
[1769946888152,9.50884244,105.17,105.14,1.00049892]
[1769946888153,9.90222211,105.17,105.14,1.00049892]
[1769946889654,0.39369438,105.16,105.14,1.00049892]
[1769946891651,9.90315543,105.17,105.14,1.00049892]
[1769946893955,0.39521453,105.16,105.14,1.00049892]
[1769946894457,9.90405697,105.17,105.14,1.00049892]
[1769946896338,0.39579843,105.15,105.13,1.00049892]
[1769946896655,0.39579843,105.15,105.12,1.00049892]
[1769946897643,0.39636899,105.14,105.11,1.00049892]
[1769946897847,0.39636899,105.14,105.1,1.00049892]
[1769946899363,0.39636899,105.14,105.11,1.00049892]
[1769946900345,9.90759637,105.14,105.11,1.00049892]
[1769946900562,9.51055206,105.15,105.12,1.00049892]
[1769946900943,26.78196203,105.16,105.12,1.00049892]
[1769946901462,4.27527085,105.18,105.12,1.00049892]
[1769946901659,0.39747131,105.18,105.12,1.00049892]
[1769946902457,0.39747131,105.17,105.14,1.00049892]
[1769946903645,9.90601477,105.18,105.14,1.00049892]
[1769946905152,0.39800366,105.18,105.15,1.00049892]
[1769946905456,14.18052445,105.19,105.15,1.00049892]
[1769946905652,9.9052536,105.19,105.15,1.00049892]
[1769946906742,9.9052536,105.19,105.15,10.51029969]
[1769946906946,9.9052536,105.19,105.16,1.00049892]
[1769946909277,1.04304262,105.18,105.12,23.78073144]
[1769946909466,1.04304262,105.15,105.09,9.51565324]
[1769946911273,1.04304262,105.14,105.07,1.02048165]
[1769946913375,10.55421223,105.14,105.08,33.30795584]
[1769946913573,10.55421223,105.14,105.09,1.02048165]
[1769946914071,1.04304262,105.14,105.09,1.02048165]
[1769946915476,5.31831347,105.15,105.11,1.02048165]
[1769946915775,1.04304262,105.15,105.11,1.02048165]
[1769946918080,1.04304262,105.15,105.11,10.53391065]
[1769946918255,1.04304262,105.14,105.11,10.53391065]
[1769946919370,1.04304262,105.15,105.12,1.02048165]
[1769946920858,5.31831347,105.16,105.13,10.53251437]
[1769946921980,5.31831347,105.16,105.13,1.02048165]
[1769946922483,14.82775985,105.16,105.13,1.02048165]
[1769946928170,1.04304262,105.15,105.11,24.80508825]
[1769946928370,1.04304262,105.15,105.11,1.02048165]
[1769946930799,9.51072401,105.15,105.11,10.53430538]
[1769946931090,1.04304262,105.14,105.11,10.53430538]
[1769946934593,1.04304262,105.13,105.1,1.02048165]
[1769946935597,1.04304262,105.13,105.09,10.53571551]
[1769946935771,1.04304262,105.13,105.1,1.02048165]
[1769946937094,10.55522512,105.13,105.1,1.02048165]
[1769946937594,1.02840744,105.12,105.09,10.51784328]
[1769946938183,1.02840744,105.12,105.1,1.00260942]
[1769946938799,10.54058994,105.13,105.1,1.00260942]
[1769946938985,1.02840744,105.13,105.11,1.00260942]
[1769946939189,1.02840744,105.13,105.1,10.51722748]
[1769946946177,1.03733338,105.14,105.11,1.05729184]
[1769946946376,1.03733338,105.14,105.1,10.5719099]
[1769946946587,1.03733338,105.13,105.1,10.5719099]
[1769946948111,1.03733338,105.12,105.09,10.57253911]
[1769946948321,1.03733338,105.12,105.08,1.05729184]
[1769946950222,1.03733338,105.11,105.08,10.57382897]
[1769946950607,1.03733338,105.12,105.09,1.05729184]
[1769946952426,1.03733338,105.12,105.1,1.05729184]
[1769946957620,1.03733338,105.12,105.1,10.57199567]
[1769946958504,1.03733338,105.12,105.1,10.57199734]
[1769946959326,1.03733338,105.12,105.1,1.05729184]
[1769946961821,1.03733338,105.12,105.1,10.57196027]
[1769946962722,1.03733338,105.12,105.1,1.05729184]
[1769946963423,17.91260423,105.14,105.1,1.05729184]
[1769946963622,1.03733338,105.16,105.11,1.05729184]
[1769946964522,1.03733338,105.15,105.11,1.05729184]
[1769946965029,1.03733338,105.15,105.12,1.05729184]
[1769946967633,1.03733338,105.15,105.13,1.01145088]
[1769946968911,1.03733338,105.15,105.12,10.52368065]
[1769946970535,1.03733338,105.15,105.13,1.01145088]
[1769946976637,10.57246933,105.16,105.13,1.01145088]
[1769946978739,1.06313917,105.15,105.11,10.52507328]
[1769946979040,1.06313917,105.15,105.1,1.01145088]
[1769946979839,1.06313917,105.15,105.11,1.01145088]
[1769946981137,1.06313917,105.13,105.11,1.01145088]
[1769946991242,1.06313917,105.12,105.1,1.01145088]
[1769946993246,10.57426718,105.14,105.1,1.01145088]
[1769946993748,1.06313917,105.13,105.1,1.01145088]
[1769946994244,1.06313917,105.13,105.1,10.52607285]
[1769946994857,10.57524232,105.13,105.1,1.01145088]
[1769946996254,1.06313917,105.12,105.09,1.01145088]
[1769946996553,1.06313917,105.11,105.08,10.527406]
[1769946996731,1.06313917,105.11,105.09,1.01145088]
[1769946997955,9.51307519,105.12,105.09,1.01145088]
[1769946998156,10.57803767,105.12,105.09,1.01145088]
[1769946998962,1.06496248,105.11,105.08,1.02974084]
[1769947000056,10.57883015,105.11,105.08,1.02974084]
[1769947000563,1.06496248,105.11,105.08,10.54627011]
[1769947001358,1.06496248,105.12,105.09,1.02974084]
[1769947002041,1.06496248,105.12,105.09,10.5451955]
[1769947008865,10.5779146,105.12,105.09,10.5451955]
[1769947009161,1.06496248,105.12,105.09,10.5451955]
[1769947016949,1.06496248,105.12,105.1,1.02805069]
[1769947018575,1.06496248,105.12,105.09,10.54350535]
[1769947020882,1.06496248,105.12,105.1,1.02805069]
[1769947021064,1.06496248,105.12,105.05,80.90980307]
[1769947021065,1.06496248,105.12,105.06,1.02805069]
[1769947021261,0.99810268,105.11,105.06,1.02805069]
[1769947021571,0.99810268,105.1,105.06,1.02805069]
[1769947022156,0.99810268,105.1,105.05,10.54732722]
[1769947023184,10.51375592,105.09,105.06,1.02805069]
[1769947023685,10.51300165,105.1,105.06,1.02805069]
[1769947024372,0.99810268,105.1,105.06,1.02805069]
[1769947024871,23.112365,105.11,105.06,1.02805069]
[1769947025064,23.112365,105.11,105.08,1.02805069]
[1769947025266,0.99810268,105.11,105.08,1.02805069]
[1769947026476,10.51146837,105.12,105.08,1.02805069]
[1769947026682,0.99810268,105.12,105.08,1.02805069]
[1769947027078,0.99810268,105.14,105.1,1.02805069]
[1769947030187,1.02300768,105.13,105.1,10.54275786]
[1769947034796,1.02300768,105.13,105.1,1.02805069]
[1769947034991,1.02300768,105.12,105.1,1.02805069]
[1769947035192,1.02300768,105.12,105.08,10.58013861]
[1769947036491,1.02300768,105.12,105.08,1.064027]
[1769947037373,1.02300768,105.11,105.08,1.064027]
[1769947038697,1.02300768,105.11,105.08,10.58056672]
[1769947041797,10.5369371,105.11,105.08,1.064027]
[1769947042092,1.02300768,105.1,105.07,9.51699517]
[1769947042298,1.02300768,105.1,105.07,10.58102217]
[1769947043188,1.02300768,105.1,105.08,1.064027]
[1769947044197,10.53688756,105.11,105.08,1.064027]
[1769947046504,1.02300768,105.1,105.08,1.064027]
[1769947049108,13.62300768,105.12,105.09,1.064027]
[1769947049896,1.02300768,105.11,105.09,1.064027]
[1769947052106,1.02300768,105.11,105.08,10.58049712]
[1769947052291,10.53685709,105.11,105.08,1.064027]
[1769947054317,1.02300768,105.11,105.08,10.58051047]
[1769947060123,1.02300768,105.11,105.09,1.05905346]
[1769947060306,1.0673617,105.13,105.09,1.05905346]
[1769947062418,1.0673617,105.13,105.1,1.05905346]
[1769947063123,1.0673617,105.12,105.1,1.05905346]
[1769947063510,10.57953834,105.13,105.1,1.05905346]
[1769947071735,1.03703702,105.12,105.1,1.05905346]
[1769947073637,1.03703702,105.12,105.1,10.57374886]
[1769947076620,1.03703702,105.13,105.1,10.57374886]
[1769947077517,1.03703702,105.13,105.1,1.05905346]
[1769947079720,10.54908229,105.13,105.1,1.05905346]
[1769947080533,1.03703702,105.12,105.09,0.99607395]
[1769947080743,1.03703702,105.12,105.08,0.99607395]
[1769947082045,10.55087966,105.11,105.08,0.99607395]
[1769947082224,1.03703702,105.1,105.08,0.99607395]
[1769947082423,1.03703702,105.1,105.07,10.51302971]
[1769947082626,1.03703702,105.1,105.08,0.99607395]
[1769947083146,1.03703702,105.09,105.05,0.99607395]
[1769947084449,1.03703702,105.09,105.06,10.5144444]
[1769947087951,0.98025733,105.11,105.07,0.99330972]
[1769947088136,10.49422474,105.11,105.07,0.99330972]
[1769947088337,0.98025733,105.1,105.07,0.99330972]
[1769947089340,10.49359551,105.12,105.07,0.99330972]
[1769947089857,0.98025733,105.11,105.07,0.99330972]
[1769947090254,0.98025733,105.11,105.08,0.99330972]
[1769947090255,10.49429709,105.11,105.08,0.99330972]
[1769947091138,0.98025733,105.11,105.08,0.99330972]
[1769947091351,10.4941358,105.11,105.08,0.99330972]
[1769947092056,0.98025733,105.11,105.08,0.99330972]
[1769947092562,10.49430775,105.11,105.08,0.99330972]
[1769947093668,0.98025733,105.11,105.09,0.99330972]
[1769947094160,10.49183556,105.14,105.09,0.99330972]
[1769947094339,9.51157823,105.14,105.09,0.99330972]
[1769947094650,10.49183556,105.14,105.09,0.99330972]
[1769947095854,10.49183556,105.14,105.11,0.99330972]
[1769947100665,0.98025733,105.13,105.1,0.99330972]
[1769947101941,33.28746794,105.15,105.1,0.99330972]
[1769947101942,0.98025733,105.14,105.11,0.99330972]
[1769947102154,0.98025733,105.14,105.1,0.99330972]
[1769947102560,9.51203272,105.13,105.1,0.99330972]
[1769947102760,10.49229005,105.13,105.1,0.99330972]
[1769947107669,10.49138534,105.14,105.11,0.99330972]
[1769947107974,0.98025733,105.13,105.11,0.99330972]
[1769947108573,0.98025733,105.13,105.1,0.99330972]
[1769947111070,10.49266457,105.13,105.1,0.99330972]
[1769947115374,0.98025733,105.12,105.09,0.99330972]
[1769947117476,10.5277024,105.11,105.08,1.01302696]
[1769947124080,9.51384264,105.11,105.08,1.01302696]
[1769947124382,0.99505693,105.1,105.08,1.01302696]
[1769947125885,10.50889957,105.11,105.08,1.01302696]
[1769947128989,0.99505693,105.1,105.08,1.01302696]
[1769947129688,0.99505693,105.1,105.07,10.55488281]
[1769947133591,10.5098404,105.1,105.07,10.55488281]
[1769947138796,10.5098404,105.1,105.07,1.03803887]
[1769947142479,0.99505693,105.1,105.07,1.03803887]
[1769947143979,0.99505693,105.1,105.08,1.03803887]
[1769947151106,23.1682124,105.11,105.08,10.55458822]
[1769947151409,1.05436976,105.1,105.08,1.03803887]
[1769947155003,1.05436976,105.1,105.06,9.51837045]
[1769947155209,1.05436976,105.1,105.07,0.98399904]
[1769947157504,13.65436976,105.11,105.08,0.98399904]
[1769947157716,1.05436976,105.11,105.08,0.98399904]
[1769947160217,1.05436976,105.11,105.08,10.50049074]
[1769947161904,1.05436976,105.11,105.09,0.98399904]
[1769947170828,1.05436976,105.1,105.07,10.50097575]
[1769947171121,1.05436976,105.1,105.06,10.50194708]
[1769947171309,1.05436976,105.1,105.07,0.98399904]
[1769947171509,0.05436976,105.1,105.07,0.98399904]
[1769947177820,0.05436976,105.1,105.06,1.01997039]
[1769947179827,0.05436976,105.1,105.07,1.01997039]
[1769947182125,45.89852852,105.11,105.07,1.01997039]
[1769947182126,12.6,105.11,105.08,1.01997039]
[1769947182317,13.5972213,105.11,105.07,9.51711808]
[1769947182826,13.5972213,105.11,105.07,33.31077944]
[1769947184034,13.5972213,105.11,105.05,33.31746786]
[1769947184239,0.9972213,105.11,105.06,1.016051]
[1769947184928,17.8581952,105.14,105.06,1.016051]
[1769947185116,0.98292435,105.13,105.06,1.016051]
[1769947186047,0.98292435,105.13,105.08,1.016051]
[1769947188740,16.87527085,105.14,105.1,1.016051]
[1769947188741,13.58292435,105.14,105.1,1.016051]
[1769947188942,0.98292435,105.14,105.1,1.016051]
[1769947189545,0.98292435,105.14,105.11,9.51384264]
[1769947189731,0.98292435,105.14,105.11,10.52989364]
[1769947193544,0.98292435,105.14,105.12,1.016051]
[1769947193759,10.4941087,105.14,105.12,1.016051]
[1769947201861,0.98292435,105.13,105.1,1.016051]
[1769947202162,10.4941087,105.14,105.1,1.016051]
[1769947202466,0.98292435,105.14,105.1,1.016051]
[1769947202668,0.98292435,105.15,105.1,1.016051]
[1769947204064,0.98292435,105.13,105.1,1.016051]
[1769947204473,0.98292435,105.13,105.09,10.5309566]
[1769947205467,9.51248489,105.13,105.09,10.5309566]
[1769947205771,0.98292435,105.12,105.09,10.5309566]
[1769947206374,0.98292435,105.12,105.1,1.016051]
[1769947206949,0.98292435,105.14,105.1,1.016051]
[1769947207357,9.5105582,105.15,105.1,1.016051]
[1769947207677,1.04569232,105.14,105.11,1.03817899]
[1769947210250,10.55625052,105.15,105.12,1.03817899]
[1769947211153,23.15625052,105.15,105.12,1.03817899]
[1769947211750,1.04569232,105.14,105.12,1.03817899]
[1769947214772,1.04569232,105.13,105.09,1.03817899]
[1769947214976,1.04569232,105.13,105.09,10.55316735]
[1769947215176,1.04569232,105.13,105.1,1.03817899]
[1769947216357,1.04569232,105.13,105.1,10.55278446]
[1769947216980,9.51144223,105.14,105.11,1.03817899]
[1769947216981,10.55713455,105.14,105.11,1.03817899]
[1769947217279,1.04569232,105.13,105.11,1.03817899]
[1769947217479,1.04569232,105.13,105.1,10.55278446]
[1769947218383,1.04569232,105.12,105.04,5.31344984]
[1769947218558,1.04569232,105.12,105.05,9.51892152]
[1769947218762,1.04569232,105.08,105.05,1.03817899]
[1769947219577,1.04569232,105.09,105.05,1.03817899]
[1769947220279,1.04569232,105.09,105.06,1.03817899]
[1769947221289,10.56137958,105.09,105.06,1.03817899]
[1769947221469,1.04569232,105.08,105.04,1.03817899]
[1769947222374,1.04569232,105.07,105.04,1.03817899]
[1769947222879,1.04569232,105.07,105.03,1.03817899]
[1769947224069,1.04569232,105.06,105.03,1.03817899]
[1769947225185,1.04569232,105.05,104.99,42.92301019]
[1769947225385,0.98537119,105.02,104.99,42.92301019]
[1769947225687,0.98537119,105.02,104.99,0.2]
[1769947226067,0.98537119,105.02,104.98,0.40043072]
[1769947226267,0.98537119,105.02,104.96,0.2]
[1769947226674,0.98537119,105.02,104.96,1.23817899]
[1769947227182,0.78619572,105.0,104.96,1.23817899]
[1769947229394,10.31171804,104.99,104.96,1.23817899]
[1769947230071,0.78739733,104.98,104.96,0.2]
[1769947230371,9.52471663,104.99,104.92,0.2]
[1769947230372,4.86266818,104.96,104.92,10.76915343]
[1769947230580,0.58812639,104.95,104.92,1.23817899]
[1769947231575,10.11695718,104.95,104.92,1.23817899]
[1769947234095,0.59088122,104.94,104.91,0.2]
[1769947235068,4.27527085,104.96,104.91,1.23817899]
[1769947235069,13.80299369,104.96,104.91,1.23817899]
[1769947235283,14.39477217,104.96,104.92,1.03817899]
[1769947236076,9.52772284,104.96,104.93,1.03817899]
[1769947236273,65.20250724,104.99,104.93,1.03817899]
[1769947236274,0.59275499,104.98,104.93,1.03817899]
[1769947236481,10.11837891,104.98,104.93,1.03817899]
[1769947236682,10.11736425,105.0,104.93,1.03817899]
[1769947237475,10.11736425,105.0,104.95,0.99655185]
[1769947237676,10.11782515,105.01,104.95,0.99655185]
[1769947237875,0.59561773,105.0,104.95,0.99655185]
[1769947238078,10.1187684,105.01,104.95,0.99655185]
[1769947238591,0.59561773,105.0,104.95,0.99655185]
[1769947239489,10.12126677,104.99,104.95,10.52482225]
[1769947240599,10.12126677,104.99,104.96,0.99655185]
[1769947241680,0.59655014,104.99,104.96,0.99655185]
[1769947243494,10.12436798,105.0,104.96,0.99655185]
[1769947244098,10.12436798,105.0,104.97,1.07469033]
[1769947244280,22.72521385,105.01,104.97,1.07469033]
[1769947245496,0.60278393,105.0,104.97,1.07469033]
[1769947247900,22.12328989,105.01,104.97,1.07469033]
[1769947248283,22.72859494,105.01,104.97,1.07469033]
[1769947250384,13.20530505,105.01,104.98,1.07469033]
[1769947250679,12.6,105.01,104.98,1.07469033]
[1769947251002,0.60693791,105.02,104.98,1.07469033]
[1769947252105,0.60693791,105.02,104.98,10.5997338]
[1769947252310,0.60693791,105.02,104.99,1.07469033]
[1769947252512,10.12900189,105.02,104.99,1.07469033]
[1769947253005,10.12900189,105.02,104.97,1.07469033]
[1769947253006,0.60931752,105.01,104.97,1.07469033]
[1769947255110,10.13466825,105.0,104.97,1.07469033]
[1769947257212,0.61085873,105.0,104.97,10.60111979]
[1769947260600,10.13470466,105.0,104.97,1.07469033]